bitfinex/quotes_BTCUSD_20240927
["timestamp","ask_amount","ask_price","bid_price","bid_amount"]
[1727442609279,0.1911,65879.0,65876.0,0.001]
[1727442609700,0.1911,65879.0,65876.0,0.002]
[1727442609906,0.1911,65879.0,65876.0,0.00503569]
[1727442610109,0.1911,65879.0,65876.0,0.002]
[1727442613457,0.1911,65879.0,65876.0,0.00503568]
[1727442613700,0.001654,65880.0,65876.0,0.00503568]
[1727442613903,0.001654,65880.0,65876.0,0.15683468]
[1727442614145,0.001654,65880.0,65876.0,0.00503568]
[1727442614366,0.001654,65880.0,65877.0,0.151797]
[1727442614595,0.001654,65880.0,65878.0,0.00303549]
[1727442615276,0.001654,65880.0,65876.0,0.002]
[1727442615277,0.001654,65880.0,65876.0,0.001]
[1727442615496,0.001654,65880.0,65877.0,0.00303551]
[1727442615706,0.001654,65880.0,65877.0,0.00403551]
[1727442615967,0.001654,65880.0,65874.0,0.1]
[1727442616181,0.001654,65880.0,65874.0,0.151804]
[1727442616599,0.001654,65880.0,65878.0,0.001]
[1727442617038,0.001654,65880.0,65878.0,0.002]
[1727442617254,0.001654,65880.0,65879.0,0.33572855]
[1727442617481,0.001654,65880.0,65879.0,0.332693]
[1727442618402,0.001654,65880.0,65879.0,0.48798094]
[1727442619028,0.001654,65880.0,65879.0,0.49347242]
[1727442619986,0.001654,65880.0,65879.0,0.50247242]
[1727442620651,0.001654,65880.0,65879.0,0.50747242]
[1727442621033,0.001654,65880.0,65879.0,0.50247242]
[1727442621460,0.001654,65880.0,65879.0,0.51247242]
[1727442622581,0.001654,65880.0,65879.0,0.70367242]
[1727442622745,0.001654,65880.0,65879.0,0.74864809]
[1727442622979,0.001654,65880.0,65879.0,0.70367242]
[1727442623298,0.001654,65880.0,65879.0,0.68467242]
[1727442623542,0.001654,65880.0,65879.0,0.70367242]
[1727442623997,0.001654,65880.0,65879.0,0.69467242]
[1727442624232,0.001654,65880.0,65879.0,0.68467242]
[1727442624455,0.001654,65880.0,65879.0,0.69467242]
[1727442624659,0.001654,65880.0,65879.0,0.70367242]
[1727442626280,0.001654,65880.0,65879.0,0.51247242]
[1727442626526,0.001654,65880.0,65879.0,0.49347242]
[1727442626730,0.001654,65880.0,65879.0,0.50547242]
[1727442626938,0.001654,65880.0,65879.0,0.51847242]
[1727442627145,0.001654,65880.0,65879.0,0.50647242]
[1727442627347,0.001654,65880.0,65879.0,0.50247242]
[1727442627755,0.001654,65880.0,65879.0,0.51247242]
[1727442630224,0.001654,65880.0,65879.0,0.70747242]
[1727442631505,0.001654,65880.0,65879.0,0.70947242]
[1727442632086,0.001654,65880.0,65879.0,0.70747242]
[1727442632550,0.001654,65880.0,65879.0,0.68847242]
[1727442632683,0.001654,65880.0,65879.0,0.70247242]
[1727442632884,0.001654,65880.0,65879.0,0.71547242]
[1727442633736,0.001654,65880.0,65879.0,0.71747242]
[1727442633908,0.001654,65880.0,65879.0,0.70347242]
[1727442634105,0.001654,65880.0,65879.0,0.69047242]
[1727442634360,0.001654,65880.0,65879.0,0.71647242]
[1727442634780,0.22760897,65885.0,65884.0,0.151781]
[1727442634993,0.22760897,65885.0,65884.0,0.41010397]
[1727442635212,0.22757697,65892.0,65884.0,0.25528794]
[1727442635424,0.22757697,65892.0,65891.0,0.251765]
[1727442635835,0.22760897,65901.0,65891.0,0.1]
[1727442636048,0.22760897,65901.0,65893.0,0.151761]
[1727442637344,0.37935197,65901.0,65893.0,0.151761]
[1727442637563,0.151746,65900.0,65891.0,0.254764]
[1727442637788,0.151746,65900.0,65891.0,0.103]
[1727442638020,0.151745,65900.0,65891.0,0.254764]
[1727442638246,0.1802,65893.0,65892.0,0.151763]
[1727442638958,0.1802,65893.0,65889.0,0.1]
[1727442639176,0.1802,65893.0,65889.0,0.251769]
[1727442639384,0.1802,65893.0,65891.0,0.1]
[1727442639802,0.1802,65893.0,65892.0,0.002]
[1727442640416,0.1802,65893.0,65891.0,0.1]
[1727442640620,0.1802,65893.0,65891.0,0.102]
[1727442640826,0.1802,65893.0,65891.0,0.103]
[1727442641057,0.1802,65893.0,65891.0,0.00503497]
[1727442641237,0.1802,65893.0,65892.0,0.151763]
[1727442641440,0.1802,65893.0,65891.0,0.15679997]
[1727442641704,0.1802,65893.0,65892.0,0.151763]
[1727442642147,0.001658,65903.0,65893.0,0.151761]
[1727442642360,0.22760897,65900.0,65893.0,0.15479553]
[1727442642581,0.22760897,65900.0,65893.0,0.25479553]
[1727442643022,0.22760897,65900.0,65893.0,0.41008347]
[1727442643236,0.22760897,65900.0,65893.0,0.40704894]
[1727442643860,0.22760897,65900.0,65893.0,0.40804894]
[1727442645249,0.22760897,65900.0,65893.0,0.40704894]
[1727442645913,0.22760897,65900.0,65893.0,0.41204894]
[1727442646143,0.22760897,65900.0,65893.0,0.41004894]
[1727442646405,0.22760897,65900.0,65893.0,0.41604894]
[1727442649510,0.001656,65894.0,65893.0,0.49054894]
[1727442649938,0.001656,65894.0,65893.0,0.48954894]
[1727442650162,0.001656,65894.0,65893.0,0.49154894]
[1727442650818,0.001656,65894.0,65893.0,0.49854894]
[1727442651246,0.001656,65894.0,65893.0,0.67084894]
[1727442653429,0.001656,65894.0,65893.0,0.49854894]
[1727442655013,0.001656,65894.0,65893.0,0.42204894]
[1727442660609,0.165256,65894.0,65893.0,0.266761]
[1727442660855,0.241956,65894.0,65893.0,0.007]
[1727442661067,0.241956,65894.0,65892.0,0.001654]
[1727442661068,0.393715,65894.0,65892.0,0.001654]
[1727442661284,0.241956,65894.0,65893.0,0.003]
[1727442661950,0.251956,65894.0,65893.0,0.003]
[1727442662657,0.246956,65894.0,65893.0,0.005]
[1727442662880,0.165256,65894.0,65893.0,0.008]
[1727442663092,0.165256,65894.0,65893.0,0.151761]
[1727442663302,0.165256,65894.0,65893.0,0.00303496]
[1727442663520,0.001656,65894.0,65893.0,0.251761]
[1727442665709,0.001656,65894.0,65893.0,0.1]
[1727442665948,0.171556,65894.0,65892.0,0.001654]
[1727442667120,0.171556,65894.0,65893.0,0.151761]
[1727442667756,0.171556,65894.0,65892.0,0.001654]
[1727442668005,0.0785,65893.0,65892.0,0.001654]
[1727442668194,0.235261,65893.0,65892.0,0.001654]
[1727442668396,0.400961,65893.0,65892.0,0.001654]
[1727442669013,0.2492,65893.0,65892.0,0.001654]
[1727442669218,0.400961,65893.0,65892.0,0.001654]
[1727442670057,0.2492,65893.0,65892.0,0.001654]
[1727442671380,0.2492,65893.0,65892.0,0.002654]
[1727442671803,0.2542,65893.0,65892.0,0.002654]
[1727442677012,0.405961,65893.0,65892.0,0.002654]
[1727442677105,0.2542,65893.0,65892.0,0.002654]
[1727442682678,0.255027,65893.0,65892.0,0.002654]
[1727442683089,0.406788,65893.0,65892.0,0.002654]
[1727442683355,0.255027,65893.0,65892.0,0.002654]
[1727442685740,0.58507594,65893.0,65892.0,0.002654]
[1727442686110,0.58507594,65893.0,65876.0,0.22760897]
[1727442686111,0.423291,65880.0,65876.0,0.22760897]
[1727442686382,0.60157894,65880.0,65876.0,0.22760897]
[1727442686570,0.60157894,65880.0,65872.0,0.000827]
[1727442687468,0.179793,65879.0,65872.0,0.000827]
[1727442687698,0.58908094,65879.0,65872.0,0.000827]
[1727442689666,0.59108094,65879.0,65878.0,0.003654]
[1727442693712,0.59608094,65879.0,65878.0,0.003654]
[1727442695303,0.82368991,65879.0,65878.0,0.003654]
[1727442695521,0.82368991,65879.0,65872.0,0.000827]
[1727442695522,0.184807,65873.0,65872.0,0.000827]
[1727442695740,0.59769494,65873.0,65872.0,0.000827]
[1727442695957,0.64310762,65873.0,65872.0,0.000827]
[1727442696182,0.432739,65859.0,65858.0,0.22760897]
[1727442696402,0.432739,65859.0,65818.0,0.00262]
[1727442696403,0.184855,65852.0,65836.0,0.151892]
[1727442696614,0.184855,65852.0,65827.0,0.1629]
[1727442696615,0.34014294,65852.0,65837.0,0.151889]
[1727442696839,0.34014294,65852.0,65838.0,0.151887]
[1727442696840,0.151874,65844.0,65838.0,0.151887]
[1727442697080,0.005,65844.0,65839.0,0.151883]
[1727442697319,0.005,65844.0,65843.0,0.000827]
[1727442697320,0.156874,65844.0,65843.0,0.000827]
[1727442697749,0.31716194,65844.0,65843.0,0.000827]
[1727442697975,0.34016194,65844.0,65843.0,0.000827]
[1727442698196,0.34516194,65844.0,65843.0,0.000827]
[1727442701454,0.01,65848.0,65846.0,0.151868]
[1727442701653,0.01,65848.0,65843.0,0.304575]
[1727442701881,0.01,65848.0,65847.0,0.151867]
[1727442702087,0.01,65848.0,65845.0,0.15187]
[1727442702361,0.01,65848.0,65846.0,0.151868]
[1727442703008,0.01,65848.0,65847.0,0.151867]
[1727442703424,0.01,65848.0,65845.0,0.15187]
[1727442704075,0.015,65848.0,65845.0,0.15187]
[1727442704309,0.018,65848.0,65845.0,0.15187]
[1727442704723,0.02,65848.0,65846.0,0.151869]
[1727442705135,0.02,65848.0,65844.0,0.303745]
[1727442705345,0.02,65848.0,65845.0,0.151871]
[1727442705781,0.02,65848.0,65843.0,0.000827]
[1727442705782,0.01,65844.0,65843.0,0.000827]
[1727442706610,0.01,65844.0,65843.0,0.152703]
[1727442706850,0.01,65844.0,65843.0,0.000827]
[1727442707535,0.011,65844.0,65843.0,0.000827]
[1727442707955,0.011,65844.0,65843.0,0.001827]
[1727442708594,0.011,65844.0,65843.0,0.153703]
[1727442709507,0.006,65844.0,65843.0,0.153703]
[1727442709715,0.001,65844.0,65843.0,0.153703]
[1727442709941,0.011,65844.0,65843.0,0.153703]
[1727442712835,0.001,65844.0,65843.0,0.233403]
[1727442713086,0.001,65844.0,65843.0,0.33644017]
[1727442713291,0.001,65844.0,65843.0,0.333403]
[1727442713925,0.001,65844.0,65843.0,0.33808362]
[1727442714180,0.22760897,65852.0,65844.0,0.1]
[1727442714432,0.22760897,65852.0,65851.0,0.151857]
[1727442714867,0.01,65853.0,65852.0,0.151855]
[1727442718060,0.01,65853.0,65852.0,0.152855]
[1727442718708,0.011,65853.0,65852.0,0.152855]
[1727442720792,0.006,65853.0,65852.0,0.152855]
[1727442721015,0.001,65853.0,65852.0,0.152855]
[1727442721483,0.001,65853.0,65852.0,0.229155]
[1727442723750,0.001,65853.0,65852.0,0.152855]
[1727442724412,0.001,65853.0,65852.0,0.001]
[1727442724662,0.001,65853.0,65852.0,0.152855]
[1727442725532,0.006,65853.0,65852.0,0.152855]
[1727442725742,0.011,65853.0,65852.0,0.001]
[1727442725956,0.011,65853.0,65852.0,0.152855]
[1727442728399,0.011,65853.0,65852.0,0.001]
[1727442728871,0.001,65853.0,65852.0,0.152855]
[1727442729323,0.001,65853.0,65852.0,0.230755]
[1727442730754,0.001,65853.0,65852.0,0.330755]
[1727442730939,0.001,65853.0,65852.0,0.331582]
[1727442731862,0.001,65853.0,65852.0,0.33706965]
[1727442732086,0.001,65853.0,65852.0,0.331582]
[1727442732312,0.001,65853.0,65852.0,0.253682]
[1727442734053,0.001,65853.0,65852.0,0.001827]
[1727442734276,0.001,65853.0,65852.0,0.153682]
[1727442737493,0.001,65853.0,65852.0,0.001827]
[1727442737731,0.162853,65853.0,65852.0,0.001827]
[1727442738996,0.34114094,65853.0,65852.0,0.001827]
[1727442739232,0.58894094,65853.0,65852.0,0.001827]
[1727442739962,0.58794094,65853.0,65852.0,0.001827]
[1727442740175,0.58794094,65853.0,65852.0,0.000827]
[1727442740385,0.60594094,65853.0,65852.0,0.000827]
[1727442740868,0.59594094,65853.0,65852.0,0.000827]
[1727442741513,0.58794094,65853.0,65852.0,0.000827]
[1727442742189,0.364353,65853.0,65852.0,0.000827]
[1727442742615,0.2265,65853.0,65852.0,0.000827]
[1727442742820,0.378353,65853.0,65852.0,0.000827]
[1727442743026,0.364353,65853.0,65852.0,0.000827]
[1727442743245,0.375353,65853.0,65852.0,0.000827]
[1727442743480,0.364353,65853.0,65852.0,0.000827]
[1727442743902,0.373353,65853.0,65852.0,0.000827]
[1727442744513,0.360353,65853.0,65852.0,0.000827]
[1727442744914,0.1945,65853.0,65852.0,0.152682]
[1727442745118,0.018,65853.0,65852.0,0.152682]
[1727442745443,0.023,65853.0,65852.0,0.152682]
[1727442745663,0.028,65853.0,65852.0,0.152682]
[1727442745873,0.019,65853.0,65852.0,0.152682]
[1727442746131,0.009,65853.0,65852.0,0.152682]
[1727442747856,0.016,65853.0,65852.0,0.152682]
[1727442748757,0.016,65853.0,65852.0,0.000827]
[1727442749814,0.016,65853.0,65852.0,0.152682]
[1727442752391,0.016,65853.0,65852.0,0.000827]
[1727442752603,0.177853,65853.0,65852.0,0.000827]
[1727442752821,0.53394094,65853.0,65852.0,0.000827]
[1727442763143,0.57948171,65853.0,65852.0,0.000827]
[1727442763349,0.53394094,65853.0,65852.0,0.000827]
[1727442765260,0.026,65853.0,65852.0,0.000827]
[1727442765485,0.177853,65853.0,65852.0,0.000827]
[1727442766136,0.168853,65853.0,65852.0,0.000827]
[1727442766342,0.017,65853.0,65852.0,0.000827]
[1727442766578,0.024,65853.0,65852.0,0.000827]
[1727442766784,0.017,65853.0,65852.0,0.000827]
[1727442767647,0.023,65853.0,65852.0,0.000827]
[1727442767861,0.023,65853.0,65852.0,0.152682]
[1727442768763,0.017,65853.0,65852.0,0.152682]
[1727442770319,0.017,65853.0,65852.0,0.000827]
[1727442770320,0.174853,65853.0,65852.0,0.000827]
[1727442775846,0.023,65853.0,65852.0,0.000827]
[1727442776048,0.174853,65853.0,65852.0,0.000827]
[1727442776511,0.023,65853.0,65852.0,0.000827]
[1727442776724,0.023,65853.0,65852.0,0.152682]
[1727442779250,0.018,65853.0,65852.0,0.152682]
[1727442779463,0.023,65853.0,65852.0,0.152682]
[1727442779665,0.013,65853.0,65852.0,0.152682]
[1727442779875,0.013,65853.0,65852.0,0.233782]
[1727442780292,0.023,65853.0,65852.0,0.233782]
[1727442780726,0.013,65853.0,65852.0,0.233782]
[1727442780932,0.013,65853.0,65852.0,0.497282]
[1727442781596,0.007,65853.0,65852.0,0.497282]
[1727442782033,0.013,65853.0,65852.0,0.497282]
[1727442782468,0.007,65853.0,65852.0,0.333782]
[1727442783133,0.01,65859.0,65852.0,0.333782]
[1727442783134,0.01,65854.0,65853.0,0.151853]
[1727442783894,0.01,65854.0,65852.0,0.001827]
[1727442783895,0.161853,65853.0,65852.0,0.003827]
[1727442784129,0.351353,65853.0,65852.0,0.003827]
[1727442784372,0.351353,65853.0,65852.0,0.000827]
[1727442786356,0.358353,65853.0,65852.0,0.000827]
[1727442787269,0.366353,65853.0,65852.0,0.001827]
[1727442787743,0.2145,65853.0,65852.0,0.001827]
[1727442788024,0.048,65853.0,65852.0,0.153682]
[1727442788270,0.048,65853.0,65852.0,0.001827]
[1727442788544,0.048,65853.0,65812.0,0.000828]
[1727442788545,0.028,65814.0,65812.0,0.000828]
[1727442788789,0.033,65814.0,65812.0,0.000828]
[1727442789032,0.033,65814.0,65813.0,2.922949]
[1727442789033,0.005,65814.0,65813.0,2.922949]
[1727442789310,0.06837722,65832.0,65813.0,2.922949]
[1727442789311,0.01,65825.0,65817.0,0.151935]
[1727442789525,0.303804,65832.0,65813.0,0.001656]
[1727442789526,0.01,65821.0,65813.0,0.001656]
[1727442789992,0.005,65819.0,65813.0,0.001656]
[1727442790433,0.006,65814.0,65813.0,0.001656]
[1727442790944,0.004,65814.0,65813.0,0.001656]
[1727442791417,0.01,65819.0,65813.0,0.001656]
[1727442792796,0.011,65819.0,65813.0,0.001656]
[1727442793929,0.162931,65819.0,65813.0,0.001656]
[1727442794161,0.165931,65819.0,65813.0,0.001656]
[1727442794435,0.165932,65819.0,65813.0,0.001656]
[1727442794872,0.151937,65817.0,65813.0,0.001656]
[1727442795530,0.013,65819.0,65813.0,0.001656]
[1727442795756,0.151937,65817.0,65813.0,0.001656]
[1727442795982,0.151939,65816.0,65813.0,0.001656]
[1727442796197,0.303869,65818.0,65813.0,0.001656]
[1727442796423,0.005,65816.0,65813.0,0.001656]
[1727442796643,0.151942,65815.0,65813.0,0.001656]
[1727442796863,0.15694,65816.0,65813.0,0.001656]
[1727442797081,0.151942,65815.0,65813.0,0.001656]
[1727442797735,0.156939,65816.0,65813.0,0.001656]
[1727442800367,0.005,65816.0,65813.0,0.001656]
[1727442800572,0.005,65816.0,65813.0,0.1536]
[1727442801228,0.005,65816.0,65813.0,0.001656]
[1727442801451,0.005,65816.0,65814.0,0.151942]
[1727442801880,0.005,65816.0,65813.0,0.153601]
[1727442802126,0.005,65816.0,65815.0,0.151941]
[1727442802344,0.005,65816.0,65813.0,0.1536]
[1727442802558,0.005,65816.0,65814.0,0.151942]
[1727442803426,0.005,65816.0,65813.0,0.001656]
[1727442803646,0.005,65816.0,65815.0,0.151941]
[1727442803871,0.01,65829.0,65815.0,0.15832673]
[1727442804096,0.24072446,65846.0,65831.0,0.151904]
[1727442804097,0.005,65832.0,65831.0,0.151904]
[1727442804324,0.01,65832.0,65831.0,0.151904]
[1727442805501,0.014,65832.0,65829.0,0.303816]
[1727442805724,0.014,65832.0,65831.0,0.151904]
[1727442806610,0.015,65832.0,65831.0,0.151904]
[1727442807252,0.011,65832.0,65831.0,0.151904]
[1727442807668,0.014,65832.0,65831.0,0.151904]
[1727442807877,0.011,65832.0,65831.0,0.151904]
[1727442808297,0.013,65832.0,65831.0,0.151904]
[1727442808506,0.011,65832.0,65831.0,0.151904]
[1727442808945,0.013,65832.0,65831.0,0.151904]
[1727442809367,0.014,65832.0,65831.0,0.151904]
[1727442810285,0.014,65832.0,65824.0,0.00556719]
[1727442810286,0.033,65814.0,65812.0,0.000828]
[1727442810509,0.184943,65814.0,65812.0,0.000828]
[1727442811910,0.196943,65814.0,65812.0,0.000828]
[1727442812152,0.184943,65814.0,65812.0,0.000828]
[1727442812436,0.34023094,65814.0,65812.0,0.000828]
[1727442812677,0.35423094,65814.0,65812.0,0.000828]
[1727442812911,0.36823094,65814.0,65812.0,0.000828]
[1727442819344,0.36823094,65814.0,65813.0,0.00186828]
[1727442822152,0.36525157,65814.0,65813.0,0.00186828]
[1727442828735,0.36525157,65814.0,65811.0,0.22790811]
[1727442828736,0.37329127,65812.0,65811.0,0.22790811]
[1727442828959,0.52857921,65812.0,65811.0,0.22790811]
[1727442829438,0.174964,65805.0,65804.0,0.22790811]
[1727442829663,0.33025194,65805.0,65804.0,0.22790811]
[1727442829923,0.00702063,65798.0,65797.0,0.22790811]
[1727442830135,0.15900063,65798.0,65797.0,0.22790811]
[1727442830406,0.00702063,65798.0,65797.0,0.22790811]
[1727442830629,0.00702063,65790.0,65786.0,0.076228]
[1727442830858,0.00702063,65790.0,65788.0,0.38073911]
[1727442831106,0.00702063,65790.0,65789.0,0.152001]
[1727442831336,0.00702063,65790.0,65788.0,0.38073811]
[1727442831571,0.00202063,65789.0,65788.0,0.15283]
[1727442833168,0.00302063,65789.0,65788.0,0.15283]
[1727442833390,0.00302063,65789.0,65788.0,0.38073811]
[1727442833603,0.00302063,65789.0,65788.0,0.15283]
[1727442834484,0.00402063,65789.0,65788.0,0.15283]
[1727442838250,0.00402063,65789.0,65788.0,0.38073811]
[1727442838251,0.002,65789.0,65788.0,0.38073811]
[1727442838462,0.002,65789.0,65788.0,0.15283]
[1727442847679,0.002,65789.0,65788.0,0.153883]
[1727442848560,0.303951,65800.0,65788.0,0.153883]
[1727442848561,0.00202063,65795.0,65794.0,0.151989]
[1727442849670,0.00202063,65796.0,65795.0,0.151987]
[1727442849895,0.00702063,65796.0,65795.0,0.151987]
[1727442851641,0.00802063,65796.0,65795.0,0.151987]
[1727442851859,0.00802063,65796.0,65795.0,0.152987]
[1727442852775,0.00802063,65796.0,65795.0,0.001]
[1727442854085,0.18300463,65796.0,65795.0,0.001]
[1727442860356,0.18466063,65796.0,65795.0,0.001]
[1727442864812,0.23025973,65796.0,65795.0,0.001]
[1727442865300,0.23026214,65796.0,65795.0,0.001]
[1727442865965,0.60169511,65796.0,65795.0,0.001]
[1727442866207,0.53329284,65796.0,65795.0,0.001]
[1727442866729,0.67209738,65796.0,65795.0,0.001]
[1727442866959,0.53529284,65796.0,65795.0,0.001]
[1727442867467,0.53329284,65796.0,65795.0,0.001]
[1727442867741,0.156996,65791.0,65790.0,0.001053]
[1727442867972,0.33528394,65791.0,65790.0,0.001053]
[1727442868464,0.42846589,65791.0,65790.0,0.001053]
[1727442869202,0.52591659,65791.0,65790.0,0.001053]
[1727442869455,0.56075527,65791.0,65790.0,0.001053]
[1727442869677,0.57475527,65791.0,65790.0,0.001053]
[1727442870382,0.56075527,65791.0,65790.0,0.001053]
[1727442871329,0.54675527,65791.0,65790.0,0.001053]
[1727442871588,0.69728675,65791.0,65790.0,0.001053]
[1727442871817,0.46830457,65791.0,65790.0,0.001053]
[1727442872069,0.48230457,65791.0,65790.0,0.001053]
[1727442872320,0.45884174,65791.0,65790.0,0.001053]
[1727442872586,0.48684174,65791.0,65790.0,0.001053]
[1727442873844,0.48230457,65791.0,65790.0,0.001053]
[1727442874074,0.48030457,65791.0,65790.0,0.001053]
[1727442874338,0.48230457,65791.0,65790.0,0.001053]
[1727442874592,0.47030457,65791.0,65790.0,0.001053]
[1727442874820,0.34230457,65791.0,65790.0,0.001053]
[1727442875071,0.32830457,65791.0,65790.0,0.001053]
[1727442875339,0.31430457,65791.0,65790.0,0.001053]
[1727442875565,0.34230457,65791.0,65790.0,0.001053]
[1727442875829,0.32830457,65791.0,65790.0,0.001053]
[1727442876080,0.35130457,65791.0,65790.0,0.001053]
[1727442876333,0.33730457,65791.0,65790.0,0.001053]
[1727442876590,0.35130457,65791.0,65790.0,0.001053]
[1727442877031,0.33730457,65791.0,65790.0,0.001053]
[1727442877992,0.35130457,65791.0,65790.0,0.001053]
[1727442878203,0.36530457,65791.0,65790.0,0.001053]
[1727442878412,0.33730457,65791.0,65790.0,0.001053]
[1727442878844,0.36530457,65791.0,65790.0,0.001053]
[1727442879502,0.36530457,65791.0,65790.0,0.00154965]
[1727442880174,0.43348192,65791.0,65790.0,0.00154965]
[1727442880415,0.41075687,65791.0,65790.0,0.00154965]
[1727442880627,0.36530457,65791.0,65790.0,0.00154965]
[1727442881043,0.43348192,65791.0,65790.0,0.00154965]
[1727442881254,0.41075234,65791.0,65790.0,0.00154965]
[1727442881499,0.41075234,65791.0,65782.0,0.22790811]
[1727442881500,0.00202063,65750.0,65749.0,0.22873611]
[1727442881997,0.00202063,65750.0,65749.0,0.38082811]
[1727442882251,0.00202063,65750.0,65749.0,0.22873611]
[1727442882505,0.00702063,65755.0,65749.0,0.15292]
[1727442882724,0.00702063,65755.0,65749.0,0.152921]
[1727442882942,0.001,65750.0,65749.0,0.153921]
[1727442883153,0.003,65750.0,65749.0,0.153921]
[1727442883364,0.001,65750.0,65749.0,0.153921]
[1727442884874,0.00702063,65755.0,65749.0,0.000828]
[1727442885084,0.01402063,65755.0,65752.0,0.152085]
[1727442885298,0.01402063,65755.0,65750.0,0.304178]
[1727442885299,0.01202063,65755.0,65751.0,0.152086]
[1727442885508,0.01202063,65755.0,65750.0,0.304178]
[1727442885711,0.01202063,65755.0,65754.0,0.152082]
[1727442885712,0.01,65755.0,65754.0,0.152082]
[1727442885923,0.01202063,65755.0,65750.0,0.304178]
[1727442886129,0.01202063,65755.0,65751.0,0.19334427]
[1727442886130,0.01802063,65755.0,65751.0,0.19334427]
[1727442886335,0.00702063,65755.0,65754.0,0.152082]
[1727442886575,0.00702063,65755.0,65752.0,0.304172]
[1727442886576,0.00702063,65755.0,65752.0,0.152085]
[1727442886763,0.01302063,65755.0,65751.0,0.19334427]
[1727442886993,0.01302063,65755.0,65753.0,0.152082]
[1727442887156,0.01302063,65755.0,65751.0,0.19334427]
[1727442887157,0.01302063,65755.0,65751.0,0.34543227]
[1727442887369,0.01302063,65755.0,65752.0,0.152086]
[1727442887567,0.01302063,65755.0,65754.0,0.152082]
[1727442887818,0.01302063,65755.0,65751.0,0.19334427]
[1727442888095,0.01102063,65755.0,65754.0,0.152082]
[1727442888298,0.01,65755.0,65754.0,0.152082]
[1727442888510,0.006,65755.0,65754.0,0.152082]
[1727442888708,0.00702063,65762.0,65761.0,0.152065]
[1727442889342,0.00702063,65762.0,65757.0,0.304146]
[1727442889543,0.00702063,65762.0,65761.0,0.152065]
[1727442890100,0.00702063,65762.0,65757.0,0.304146]
[1727442890523,0.00702063,65762.0,65759.0,0.152068]
[1727442890728,0.00702063,65762.0,65760.0,0.152067]
[1727442891132,0.01202063,65762.0,65760.0,0.152067]
[1727442891343,0.00702063,65762.0,65758.0,0.15207]
[1727442891536,0.15908563,65762.0,65758.0,0.15207]
[1727442891748,0.16308563,65762.0,65758.0,0.15207]
[1727442891917,0.15908563,65762.0,65758.0,0.15207]
[1727442892117,0.15908463,65762.0,65758.0,0.152072]
[1727442892320,0.00202063,65756.0,65751.0,0.22790811]
[1727442892526,0.00202063,65756.0,65755.0,0.152079]
[1727442892926,0.00702063,65759.0,65758.0,0.152072]
[1727442893123,0.005,65761.0,65759.0,0.152068]
[1727442893385,0.01302063,65762.0,65756.0,0.304151]
[1727442893667,0.01302063,65762.0,65758.0,0.304145]
[1727442893875,0.005,65759.0,65758.0,0.304145]
[1727442894083,0.005,65759.0,65758.0,0.456217]
[1727442894330,0.00902063,65762.0,65761.0,0.152065]
[1727442895053,0.00702063,65762.0,65761.0,0.152065]
[1727442895680,0.01102063,65762.0,65761.0,0.152065]
[1727442896296,0.01102063,65762.0,65761.0,0.152893]
[1727442896874,0.01302063,65762.0,65761.0,0.152893]
[1727442897301,0.01302063,65762.0,65761.0,0.000828]
[1727442897928,0.01302063,65762.0,65761.0,0.152893]
[1727442898524,0.01302063,65762.0,65761.0,0.000828]
[1727442901694,0.01302063,65762.0,65761.0,0.152893]
[1727442901901,0.01302063,65762.0,65761.0,0.000828]
[1727442902113,0.01302063,65762.0,65761.0,0.152893]
[1727442902319,0.006,65762.0,65761.0,0.152893]
[1727442902528,0.006,65762.0,65761.0,0.15593404]
[1727442902734,0.006,65762.0,65761.0,0.152893]
[1727442903149,0.004,65762.0,65761.0,0.152893]
[1727442903355,0.00702063,65770.0,65761.0,0.000828]
[1727442903577,0.00702063,65770.0,65769.0,0.152047]
[1727442905003,0.01102063,65770.0,65769.0,0.152047]
[1727442905634,0.01302063,65770.0,65769.0,0.152047]
[1727442906044,0.01102063,65770.0,65769.0,0.152047]
[1727442906249,0.009,65770.0,65769.0,0.152047]
[1727442906455,0.01302063,65770.0,65769.0,0.152047]
[1727442906907,0.006,65770.0,65769.0,0.152047]
[1727442909216,0.004,65770.0,65769.0,0.15508765]
[1727442909460,0.004,65770.0,65769.0,0.25508765]
[1727442909712,0.004,65770.0,65769.0,0.41037559]
[1727442909713,0.006,65770.0,65769.0,0.41037559]
[1727442909963,0.002,65770.0,65769.0,0.40733494]
[1727442910204,0.22790811,65781.0,65780.0,0.152021]
[1727442910667,0.00702063,65783.0,65782.0,0.152017]
[1727442913570,0.00902063,65783.0,65782.0,0.152017]
[1727442914276,0.00702063,65783.0,65782.0,0.152017]
[1727442914750,0.00902063,65783.0,65782.0,0.152017]
[1727442918790,0.007,65783.0,65782.0,0.152017]
[1727442919017,0.002,65783.0,65782.0,0.152017]
[1727442919308,0.002,65783.0,65782.0,0.15505692]
[1727442919561,0.002,65783.0,65782.0,0.25505692]
[1727442920293,0.002,65783.0,65782.0,0.48296503]
[1727442920527,0.002,65783.0,65782.0,0.40730494]
[1727442920754,0.001656,65786.0,65785.0,0.15201]
[1727442920984,0.001656,65786.0,65785.0,0.25504969]
[1727442921932,0.001656,65786.0,65785.0,0.44839396]
[1727442922210,0.001656,65786.0,65785.0,0.44535427]
[1727442922449,0.001656,65786.0,65785.0,0.15201]
[1727442923362,0.001656,65786.0,65782.0,0.1]
[1727442923363,0.00202063,65785.0,65782.0,0.1]
[1727442923816,0.00702063,65785.0,65782.0,0.152016]
[1727442924043,0.00702063,65785.0,65784.0,0.152012]
[1727442925165,0.00702063,65785.0,65780.0,0.22790811]
[1727442925166,0.00702063,65783.0,65780.0,0.152021]
[1727442925380,0.00702063,65783.0,65776.0,0.00446649]